[Event "*** Titled Tuesday Blitz"]
[Site "Chess.com"]
[Date "2020.11.24"]
[Round "3"]
[White "SergeyShtyka"]
[Black "26andrej26"]
[Result "1-0"]
[WhiteElo "2376"]
[BlackElo "2518"]
[TimeControl "180+1"]
[EndTime "10:45:59 PST"]
[Termination "SergeyShtyka won by checkmate"]

1. e4 {[%clk 0:03:00.8]} 1... c5 {[%clk 0:02:58.6]} 2. Nf3 {[%clk 0:03:00.3]}
2... d6 {[%clk 0:02:59.1]} 3. d4 {[%clk 0:03:00.7]} 3... cxd4 {[%clk 0:03:00]}
4. Nxd4 {[%clk 0:03:01.2]} 4... Nf6 {[%clk 0:03:00.6]} 5. Nc3 {[%clk 0:03:01.7]}
5... a6 {[%clk 0:03:01.1]} 6. Bc4 {[%clk 0:03:01.1]} 6... e6 {[%clk 0:03:01.3]}
7. O-O {[%clk 0:03:01]} 7... b5 {[%clk 0:03:01.4]} 8. Bd3 {[%clk 0:03:00.9]}
8... Be7 {[%clk 0:03:00.5]} 9. a3 {[%clk 0:03:01.2]} 9... O-O {[%clk 0:03:00.6]}
10. Be3 {[%clk 0:03:01.6]} 10... Qc7 {[%clk 0:03:00]} 11. f4 {[%clk 0:03:01.7]}
11... Nbd7 {[%clk 0:02:49.8]} 12. Qf3 {[%clk 0:03:00.2]} 12... Bb7 {[%clk
0:02:48.9]} 13. Rae1 {[%clk 0:02:57.2]} 13... Nc5 {[%clk 0:02:35.7]} 14. Kh1
{[%clk 0:02:56.5]} 14... Rad8 {[%clk 0:02:09.7]} 15. Bf2 {[%clk 0:02:52.4]}
15... Qb8 {[%clk 0:01:45.2]} 16. Qg3 {[%clk 0:02:35.2]} 16... Kh8 {[%clk
0:01:31.2]} 17. Nf3 {[%clk 0:02:11.4]} 17... Nh5 {[%clk 0:01:22.8]} 18. Qg4
{[%clk 0:02:08.8]} 18... Nf6 {[%clk 0:01:23.1]} 19. Qg3 {[%clk 0:02:06.4]} 19...
Qa8 {[%clk 0:01:01.5]} 20. Bxc5 {[%clk 0:01:25.3]} 20... dxc5 {[%clk 0:00:59.7]}
21. e5 {[%clk 0:01:23]} 21... Nh5 {[%clk 0:00:37.9]} 22. Qg4 {[%clk 0:01:17.5]}
22... g6 {[%clk 0:00:38.3]} 23. Be4 {[%clk 0:01:09.3]} 23... Kg8 {[%clk
0:00:12.1]} 24. Bxb7 {[%clk 0:01:08.3]} 24... Qxb7 {[%clk 0:00:13]} 25. Ne4
{[%clk 0:01:08.2]} 25... c4 {[%clk 0:00:12.5]} 26. Nfg5 {[%clk 0:01:05.2]} 26...
h6 {[%clk 0:00:09.1]} 27. Nf3 {[%clk 0:01:04.6]} 27... Kh7 {[%clk 0:00:09.5]}
28. Nh4 {[%clk 0:00:36.5]} 28... Rd4 {[%clk 0:00:07.7]} 29. f5 {[%clk
0:00:29.1]} 29... exf5 {[%clk 0:00:03.4]} 30. Nf6+ {[%clk 0:00:17.3]} 30... Bxf6
{[%clk 0:00:02.2]} 31. Qxd4 {[%clk 0:00:17.9]} 31... Bg5 {[%clk 0:00:02.5]} 32.
Nf3 {[%clk 0:00:16.4]} 32... Be7 {[%clk 0:00:02.3]} 33. e6 {[%clk 0:00:15.6]}
33... f6 {[%clk 0:00:02]} 34. Rd1 {[%clk 0:00:11.9]} 34... Rd8 {[%clk 0:00:02]}
35. Qe3 {[%clk 0:00:11.1]} 35... Ng7 {[%clk 0:00:02]} 36. Rxd8 {[%clk
0:00:10.4]} 36... Bxd8 {[%clk 0:00:02.9]} 37. Rd1 {[%clk 0:00:10.5]} 37... Qe7
{[%clk 0:00:01.6]} 38. Rd7 {[%clk 0:00:08.2]} 38... Qe8 {[%clk 0:00:02.1]} 39.
Nd4 {[%clk 0:00:04.3]} 39... Kh8 {[%clk 0:00:02.2]} 40. h3 {[%clk 0:00:04.8]}
40... Kg8 {[%clk 0:00:02.2]} 41. c3 {[%clk 0:00:05.3]} 41... g5 {[%clk
0:00:02.7]} 42. Rf7 {[%clk 0:00:05.5]} 42... Bb6 {[%clk 0:00:02.4]} 43. Rb7
{[%clk 0:00:04.7]} 43... f4 {[%clk 0:00:02.1]} 44. Qe4 {[%clk 0:00:04.6]} 44...
Bxd4 {[%clk 0:00:02.5]} 45. cxd4 {[%clk 0:00:04.4]} 45... Qxe6 {[%clk
0:00:02.8]} 46. Rxg7+ {[%clk 0:00:03.9]} 46... Kxg7 {[%clk 0:00:02.5]} 47. Qxe6
{[%clk 0:00:04.2]} 47... f3 {[%clk 0:00:03.2]} 48. gxf3 {[%clk 0:00:04.1]} 48...
Kg6 {[%clk 0:00:03.8]} 49. d5 {[%clk 0:00:04.7]} 49... Kh5 {[%clk 0:00:04.4]}
50. Qe8+ {[%clk 0:00:04.9]} 50... Kh4 {[%clk 0:00:04.5]} 51. Kg2 {[%clk
0:00:05.7]} 51... f5 {[%clk 0:00:04.8]} 52. Qe5 {[%clk 0:00:05.8]} 52... f4
{[%clk 0:00:04.4]} 53. Qf5 {[%clk 0:00:06.1]} 53... h5 {[%clk 0:00:05.3]} 54.
Qf6 {[%clk 0:00:06.1]} 54... c3 {[%clk 0:00:05.6]} 55. Qxc3 {[%clk 0:00:05.7]}
55... b4 {[%clk 0:00:05.9]} 56. axb4 {[%clk 0:00:06]} 56... a5 {[%clk
0:00:05.8]} 57. b5 {[%clk 0:00:06.4]} 57... a4 {[%clk 0:00:05.8]} 58. Kg1 {[%clk
0:00:06.7]} 58... Kxh3 {[%clk 0:00:05.2]} 59. Qd2 {[%clk 0:00:07]} 59... g4
{[%clk 0:00:02.2]} 60. Qh2# {[%clk 0:00:06]} 1-0

[Event "*** Titled Tuesday Blitz"]
[Site "Chess.com"]
[Date "2020.11.24"]
[Round "3"]
[White "sasko1234"]
[Black "Tpros"]
[Result "1-0"]
[WhiteElo "2437"]
[BlackElo "2586"]
[TimeControl "180+1"]
[EndTime "10:46:02 PST"]
[Termination "sasko1234 won on time"]

1. Nf3 {[%clk 0:03:00.9]} 1... Nf6 {[%clk 0:02:59.6]} 2. d4 {[%clk 0:02:59.6]}
2... d6 {[%clk 0:03:00.1]} 3. Bf4 {[%clk 0:02:59.3]} 3... g6 {[%clk 0:03:01]} 4.
e3 {[%clk 0:02:59.4]} 4... Bg7 {[%clk 0:03:01.5]} 5. Be2 {[%clk 0:02:59.6]} 5...
b6 {[%clk 0:03:02.2]} 6. O-O {[%clk 0:02:59.3]} 6... Bb7 {[%clk 0:03:02.9]} 7.
a4 {[%clk 0:02:58.6]} 7... a6 {[%clk 0:03:02.8]} 8. h3 {[%clk 0:02:58.8]} 8...
Nbd7 {[%clk 0:03:03.3]} 9. c3 {[%clk 0:02:59]} 9... O-O {[%clk 0:03:03.9]} 10.
Nbd2 {[%clk 0:02:58.4]} 10... c5 {[%clk 0:03:04.5]} 11. Bh2 {[%clk 0:02:57.9]}
11... Nd5 {[%clk 0:03:04.7]} 12. Qb3 {[%clk 0:02:56.7]} 12... cxd4 {[%clk
0:03:04.8]} 13. exd4 {[%clk 0:02:56]} 13... Bh6 {[%clk 0:03:03.1]} 14. Rfe1
{[%clk 0:02:47.1]} 14... Nf4 {[%clk 0:03:03]} 15. Bxf4 {[%clk 0:02:42.3]} 15...
Bxf4 {[%clk 0:03:02.3]} 16. Nf1 {[%clk 0:02:42]} 16... Re8 {[%clk 0:02:59.4]}
17. Ng3 {[%clk 0:02:41.3]} 17... Nf6 {[%clk 0:02:57.4]} 18. Bc4 {[%clk
0:02:38.1]} 18... e6 {[%clk 0:02:54.9]} 19. Be2 {[%clk 0:02:27.4]} 19... Qc7
{[%clk 0:02:54.4]} 20. Nf1 {[%clk 0:02:21.7]} 20... Bd5 {[%clk 0:02:53.2]} 21.
Qd1 {[%clk 0:02:19.8]} 21... Bh6 {[%clk 0:02:49.5]} 22. Bd3 {[%clk 0:02:19.6]}
22... Rec8 {[%clk 0:02:45.6]} 23. Ne3 {[%clk 0:02:18.9]} 23... Bb7 {[%clk
0:02:45.7]} 24. Ng4 {[%clk 0:02:17.8]} 24... Bg7 {[%clk 0:02:45.5]} 25. Nxf6+
{[%clk 0:02:16.4]} 25... Bxf6 {[%clk 0:02:46.4]} 26. Be4 {[%clk 0:02:14.9]}
26... Rab8 {[%clk 0:02:46]} 27. Bxb7 {[%clk 0:02:14]} 27... Rxb7 {[%clk
0:02:46.9]} 28. Qe2 {[%clk 0:02:13.4]} 28... b5 {[%clk 0:02:45.9]} 29. axb5
{[%clk 0:02:09.5]} 29... axb5 {[%clk 0:02:46.8]} 30. Rac1 {[%clk 0:02:03.3]}
30... Qc4 {[%clk 0:02:45.9]} 31. Qe3 {[%clk 0:01:59.9]} 31... Qd5 {[%clk
0:02:35.5]} 32. Qf4 {[%clk 0:01:55.7]} 32... Kg7 {[%clk 0:02:34.5]} 33. h4
{[%clk 0:01:53.5]} 33... h6 {[%clk 0:02:34.9]} 34. h5 {[%clk 0:01:44.4]} 34...
g5 {[%clk 0:02:34.8]} 35. Qe3 {[%clk 0:01:41.6]} 35... Ra7 {[%clk 0:02:33.3]}
36. Nd2 {[%clk 0:01:32.2]} 36... Ra2 {[%clk 0:02:30.1]} 37. Rb1 {[%clk
0:01:30.4]} 37... Be7 {[%clk 0:02:18.9]} 38. Ne4 {[%clk 0:01:27.8]} 38... Qf5
{[%clk 0:02:07.5]} 39. Ng3 {[%clk 0:01:18.7]} 39... Qd5 {[%clk 0:02:04.2]} 40.
Ne4 {[%clk 0:01:16.9]} 40... Rc4 {[%clk 0:01:59.9]} 41. Nd2 {[%clk 0:01:11.1]}
41... Rca4 {[%clk 0:01:53.8]} 42. Ne4 {[%clk 0:01:03.7]} 42... Ra7 {[%clk
0:01:43.6]} 43. Nd2 {[%clk 0:00:59.7]} 43... Qf5 {[%clk 0:01:38.8]} 44. Ne4
{[%clk 0:00:58.1]} 44... R7a6 {[%clk 0:01:39.3]} 45. Ng3 {[%clk 0:00:57]} 45...
Qg4 {[%clk 0:01:33.3]} 46. d5 {[%clk 0:00:48.6]} 46... e5 {[%clk 0:01:32.1]} 47.
Qd3 {[%clk 0:00:47.6]} 47... Bd8 {[%clk 0:01:20.8]} 48. Nf5+ {[%clk 0:00:34]}
48... Kf6 {[%clk 0:01:20.7]} 49. Ng3 {[%clk 0:00:29.9]} 49... Bb6 {[%clk
0:01:11.9]} 50. Re4 {[%clk 0:00:24]} 50... Qd7 {[%clk 0:01:06.9]} 51. Qf3+
{[%clk 0:00:20.8]} 51... Kg7 {[%clk 0:01:02.1]} 52. Nf5+ {[%clk 0:00:20.2]}
52... Kh7 {[%clk 0:01:02.5]} 53. g4 {[%clk 0:00:20.3]} 53... R6a4 {[%clk
0:00:19.6]} 54. Kg2 {[%clk 0:00:16.5]} 54... Rxe4 {[%clk 0:00:17.5]} 55. Qxe4
{[%clk 0:00:16.6]} 55... Ra4 {[%clk 0:00:18.4]} 56. b4 {[%clk 0:00:15.6]} 56...
Ra2 {[%clk 0:00:10.9]} 57. Rf1 {[%clk 0:00:14.8]} 57... Qa7 {[%clk 0:00:07.4]}
58. Nxd6+ {[%clk 0:00:14.5]} 58... Kg8 {[%clk 0:00:05.8]} 59. Nxb5 {[%clk
0:00:12.6]} 59... Qa6 {[%clk 0:00:02.7]} 60. Nd6 {[%clk 0:00:10.4]} 60... Qa3
{[%clk 0:00:01.1]} 61. Qf5 {[%clk 0:00:07.7]} 1-0

[Event "*** Titled Tuesday Blitz"]
[Site "Chess.com"]
[Date "2020.11.24"]
[Round "3"]
[White "Deepweb2020"]
[Black "Brave_spirit12"]
[Result "1-0"]
[WhiteElo "2266"]
[BlackElo "2489"]
[TimeControl "180+1"]
[EndTime "10:46:03 PST"]
[Termination "Deepweb2020 won by resignation"]

1. d4 {[%clk 0:03:00.9]} 1... Nf6 {[%clk 0:02:59.5]} 2. c4 {[%clk 0:03:00.2]}
2... e6 {[%clk 0:02:59.8]} 3. g3 {[%clk 0:02:59.2]} 3... d5 {[%clk 0:03:00.7]}
4. Nf3 {[%clk 0:02:58.6]} 4... Be7 {[%clk 0:03:00.6]} 5. Bg2 {[%clk 0:02:58.9]}
5... O-O {[%clk 0:03:00.1]} 6. O-O {[%clk 0:02:59.2]} 6... c5 {[%clk 0:02:59.8]}
7. cxd5 {[%clk 0:02:58.2]} 7... exd5 {[%clk 0:03:00.7]} 8. dxc5 {[%clk
0:02:58.7]} 8... Nc6 {[%clk 0:02:59.6]} 9. a3 {[%clk 0:02:58.3]} 9... a5 {[%clk
0:02:57.6]} 10. Nc3 {[%clk 0:02:51.4]} 10... Be6 {[%clk 0:02:51.5]} 11. Nd4
{[%clk 0:02:39.6]} 11... Bxc5 {[%clk 0:02:45.5]} 12. Nxe6 {[%clk 0:02:35.9]}
12... fxe6 {[%clk 0:02:46.4]} 13. Bg5 {[%clk 0:02:30.6]} 13... Qd7 {[%clk
0:02:40.4]} 14. Bxf6 {[%clk 0:02:28.4]} 14... Rxf6 {[%clk 0:02:39.6]} 15. e3
{[%clk 0:02:24.8]} 15... Raf8 {[%clk 0:02:38.2]} 16. Ne4 {[%clk 0:02:14.8]}
16... Qe7 {[%clk 0:02:22]} 17. Nxf6+ {[%clk 0:02:14.3]} 17... Qxf6 {[%clk
0:02:22.9]} 18. Bxd5 {[%clk 0:02:04]} 18... Ne5 {[%clk 0:02:19.4]} 19. Bxb7
{[%clk 0:01:56.2]} 19... Rb8 {[%clk 0:02:18.4]} 20. Bg2 {[%clk 0:01:44.7]} 20...
h5 {[%clk 0:01:50.6]} 21. Qxh5 {[%clk 0:01:34.5]} 21... Rxb2 {[%clk 0:01:46.3]}
22. Rab1 {[%clk 0:01:11.5]} 22... Rd2 {[%clk 0:01:36.1]} 23. Rb8+ {[%clk
0:00:54.7]} 23... Bf8 {[%clk 0:01:35.7]} 24. Be4 {[%clk 0:00:45.9]} 24... g6
{[%clk 0:01:25.7]} 25. Qh3 {[%clk 0:00:32.7]} 25... a4 {[%clk 0:01:13.6]} 26.
Rb6 {[%clk 0:00:31.9]} 26... Bd6 {[%clk 0:01:06.6]} 27. Ra6 {[%clk 0:00:25.5]}
27... Nc4 {[%clk 0:00:12.8]} 28. Ra8+ {[%clk 0:00:18.5]} 28... Bf8 {[%clk
0:00:11.7]} 29. Rxa4 {[%clk 0:00:16.8]} 29... Nd6 {[%clk 0:00:12.1]} 30. Bg2
{[%clk 0:00:12.9]} 30... Nb5 {[%clk 0:00:11.5]} 31. Rf4 {[%clk 0:00:11.2]} 31...
Qe5 {[%clk 0:00:07.3]} 32. a4 {[%clk 0:00:09.1]} 32... Nc3 {[%clk 0:00:07.2]}
33. Qg4 {[%clk 0:00:07]} 33... Ne2+ {[%clk 0:00:07]} 34. Kh1 {[%clk 0:00:05.8]}
34... Nxf4 {[%clk 0:00:07.4]} 35. Qxf4 {[%clk 0:00:04.9]} 35... Qg7 {[%clk
0:00:05.5]} 36. Be4 {[%clk 0:00:03.9]} 36... Bd6 {[%clk 0:00:05.2]} 37. Qg4
{[%clk 0:00:04.1]} 37... g5 {[%clk 0:00:04.5]} 38. Qxe6+ {[%clk 0:00:04]} 38...
Kf8 {[%clk 0:00:04.7]} 39. Qf5+ {[%clk 0:00:03.9]} 39... Ke8 {[%clk 0:00:04.5]}
40. Rc1 {[%clk 0:00:03.9]} 40... Qd7 {[%clk 0:00:02.6]} 41. Rc8+ {[%clk
0:00:03.7]} 41... Ke7 {[%clk 0:00:02]} 42. Qxg5+ {[%clk 0:00:03.5]} 42... Ke6
{[%clk 0:00:01.9]} 43. Bf5+ {[%clk 0:00:03.6]} 43... Ke5 {[%clk 0:00:01.9]} 44.
Bxd7+ {[%clk 0:00:04.1]} 44... Ke4 {[%clk 0:00:01.5]} 45. Qf4+ {[%clk
0:00:04.3]} 45... Bxf4 {[%clk 0:00:01.4]} 46. exf4 {[%clk 0:00:05.1]} 46... Rxd7
{[%clk 0:00:02.3]} 47. Rc4+ {[%clk 0:00:04.3]} 47... Kf3 {[%clk 0:00:03.2]} 48.
Rc3+ {[%clk 0:00:03.9]} 48... Kxf2 {[%clk 0:00:03.9]} 49. Rc1 {[%clk 0:00:04.4]}
49... Kf3 {[%clk 0:00:04.5]} 50. Ra1 {[%clk 0:00:04.8]} 50... Rd2 {[%clk
0:00:04.6]} 51. a5 {[%clk 0:00:04.7]} 51... Kg4 {[%clk 0:00:03.3]} 52. a6 {[%clk
0:00:04.5]} 52... Kh3 {[%clk 0:00:03.8]} 53. a7 {[%clk 0:00:04.3]} 53... Rxh2+
{[%clk 0:00:04.5]} 54. Kg1 {[%clk 0:00:04.8]} 54... Rg2+ {[%clk 0:00:05.4]} 55.
Kf1 {[%clk 0:00:05.3]} 55... Rxg3 {[%clk 0:00:06.3]} 56. a8=Q {[%clk 0:00:05.4]}
56... Kg4 {[%clk 0:00:07.2]} 57. Qg2 {[%clk 0:00:04.8]} 57... Kxf4 {[%clk
0:00:05.4]} 58. Qxg3+ {[%clk 0:00:05.2]} 58... Kxg3 {[%clk 0:00:06.1]} 59. Ra3+
{[%clk 0:00:06.1]} 1-0

[Event "*** Titled Tuesday Blitz"]
[Site "Chess.com"]
[Date "2020.11.24"]
[Round "3"]
[White "A-S-00"]
[Black "JiiHart"]
[Result "1-0"]
[WhiteElo "2318"]
[BlackElo "2056"]
[TimeControl "180+1"]
[EndTime "10:46:04 PST"]
[Termination "A-S-00 won by checkmate"]

1. e4 {[%clk 0:03:00.6]} 1... c5 {[%clk 0:02:59.2]} 2. Nf3 {[%clk 0:03:00.7]}
2... Nc6 {[%clk 0:02:59.3]} 3. d4 {[%clk 0:03:01.1]} 3... cxd4 {[%clk
0:02:59.4]} 4. Nxd4 {[%clk 0:03:02]} 4... Nf6 {[%clk 0:02:59.8]} 5. Nc3 {[%clk
0:03:01.7]} 5... d6 {[%clk 0:03:00.2]} 6. Be3 {[%clk 0:02:59.5]} 6... e5 {[%clk
0:03:00.1]} 7. Nb3 {[%clk 0:02:53.2]} 7... h6 {[%clk 0:02:59.5]} 8. f3 {[%clk
0:02:52.9]} 8... Be6 {[%clk 0:02:58.9]} 9. Qd2 {[%clk 0:02:52.4]} 9... Be7
{[%clk 0:02:56.1]} 10. O-O-O {[%clk 0:02:51.9]} 10... a6 {[%clk 0:02:53.7]} 11.
g4 {[%clk 0:02:49.2]} 11... Rc8 {[%clk 0:02:51.2]} 12. h4 {[%clk 0:02:44.2]}
12... Qc7 {[%clk 0:02:43.6]} 13. Qf2 {[%clk 0:02:20.6]} 13... Nd7 {[%clk
0:02:31.5]} 14. Rg1 {[%clk 0:01:29.2]} 14... b5 {[%clk 0:02:16]} 15. g5 {[%clk
0:01:25.7]} 15... Nb4 {[%clk 0:01:27.3]} 16. Kb1 {[%clk 0:01:19.8]} 16... Bc4
{[%clk 0:01:15.9]} 17. gxh6 {[%clk 0:01:03.3]} 17... gxh6 {[%clk 0:01:15.6]} 18.
Bh3 {[%clk 0:00:58.2]} 18... a5 {[%clk 0:01:08.5]} 19. Nd2 {[%clk 0:00:50.7]}
19... Bxa2+ {[%clk 0:01:01.9]} 20. Kc1 {[%clk 0:00:39.2]} 20... Nxc2 {[%clk
0:00:58.7]} 21. Kxc2 {[%clk 0:00:34.2]} 21... b4 {[%clk 0:00:58.3]} 22. Nb1
{[%clk 0:00:16.2]} 22... Bxb1+ {[%clk 0:00:53.5]} 23. Kxb1 {[%clk 0:00:15.5]}
23... bxc3 {[%clk 0:00:53.9]} 24. Rc1 {[%clk 0:00:14.3]} 24... Qb7 {[%clk
0:00:49.2]} 25. Rg7 {[%clk 0:00:10.3]} 25... Kf8 {[%clk 0:00:46.1]} 26. Rcg1
{[%clk 0:00:09.9]} 26... Bf6 {[%clk 0:00:38.3]} 27. R7g2 {[%clk 0:00:05.4]}
27... cxb2 {[%clk 0:00:36.5]} 28. Qxb2 {[%clk 0:00:05]} 28... Rb8 {[%clk
0:00:32.4]} 29. Qxb7 {[%clk 0:00:04.5]} 29... Rxb7+ {[%clk 0:00:33.3]} 30. Ka2
{[%clk 0:00:05.1]} 30... Ke7 {[%clk 0:00:28.9]} 31. Rd2 {[%clk 0:00:04.5]} 31...
Rhb8 {[%clk 0:00:26.9]} 32. Rgd1 {[%clk 0:00:04.6]} 32... Nc5 {[%clk 0:00:25.5]}
33. Bxc5 {[%clk 0:00:02.3]} 33... dxc5 {[%clk 0:00:23.8]} 34. Rd7+ {[%clk
0:00:03.2]} 34... Rxd7 {[%clk 0:00:23.2]} 35. Rxd7+ {[%clk 0:00:03.3]} 35... Ke8
{[%clk 0:00:23.5]} 36. Rc7 {[%clk 0:00:03.6]} 36... Be7 {[%clk 0:00:21.6]} 37.
Ra7 {[%clk 0:00:03.4]} 37... Rd8 {[%clk 0:00:18.4]} 38. Rxa5 {[%clk 0:00:03.3]}
38... f6 {[%clk 0:00:18.4]} 39. Kb3 {[%clk 0:00:03.4]} 39... Kf7 {[%clk
0:00:18.2]} 40. Kc4 {[%clk 0:00:03.7]} 40... Rd4+ {[%clk 0:00:17.2]} 41. Kc3
{[%clk 0:00:03.7]} 41... Rd1 {[%clk 0:00:16.8]} 42. Bf5 {[%clk 0:00:03.8]} 42...
Rc1+ {[%clk 0:00:14.9]} 43. Kd3 {[%clk 0:00:04.2]} 43... Rd1+ {[%clk 0:00:14.5]}
44. Kc2 {[%clk 0:00:03.6]} 44... Rd7 {[%clk 0:00:13.7]} 45. Bxd7 {[%clk
0:00:03.3]} 45... Bd6 {[%clk 0:00:12.1]} 46. Bf5 {[%clk 0:00:03.5]} 46... Ke8
{[%clk 0:00:08.7]} 47. Ra7 {[%clk 0:00:03.6]} 47... Bb8 {[%clk 0:00:07.7]} 48.
Ra8 {[%clk 0:00:04.1]} 48... Ke7 {[%clk 0:00:08.2]} 49. Rxb8 {[%clk 0:00:04.5]}
49... Kd6 {[%clk 0:00:09.1]} 50. Kc3 {[%clk 0:00:05]} 50... Kc6 {[%clk
0:00:09.4]} 51. Rf8 {[%clk 0:00:05.2]} 51... Kc7 {[%clk 0:00:10.2]} 52. Rxf6
{[%clk 0:00:06.1]} 52... Kd8 {[%clk 0:00:09.9]} 53. Kc4 {[%clk 0:00:06.9]} 53...
Ke7 {[%clk 0:00:10.5]} 54. Rxh6 {[%clk 0:00:07.7]} 54... Kf7 {[%clk 0:00:10.7]}
55. Kxc5 {[%clk 0:00:08.3]} 55... Kg7 {[%clk 0:00:10.6]} 56. Rh7+ {[%clk
0:00:09.2]} 56... Kf6 {[%clk 0:00:10.2]} 57. Rh6+ {[%clk 0:00:08.6]} 57... Ke7
{[%clk 0:00:09.1]} 58. Rg6 {[%clk 0:00:09.5]} 58... Kf7 {[%clk 0:00:09.1]} 59.
h5 {[%clk 0:00:09.4]} 59... Ke7 {[%clk 0:00:09.4]} 60. h6 {[%clk 0:00:10.3]}
60... Kf7 {[%clk 0:00:10]} 61. h7 {[%clk 0:00:10.6]} 61... Ke7 {[%clk
0:00:10.9]} 62. h8=Q {[%clk 0:00:10.7]} 62... Kf7 {[%clk 0:00:11.8]} 63. Qg8+
{[%clk 0:00:10.5]} 63... Ke7 {[%clk 0:00:12.7]} 64. Re6+ {[%clk 0:00:10.8]}
64... Kd7 {[%clk 0:00:13.6]} 65. Qe8+ {[%clk 0:00:11.1]} 65... Kc7 {[%clk
0:00:13.2]} 66. Rc6+ {[%clk 0:00:12]} 66... Kb7 {[%clk 0:00:13.5]} 67. Qc8+
{[%clk 0:00:12.3]} 67... Ka7 {[%clk 0:00:13.3]} 68. Ra6# {[%clk 0:00:13.2]} 1-0

[Event "*** Titled Tuesday Blitz"]
[Site "Chess.com"]
[Date "2020.11.24"]
[Round "3"]
[White "Rital44"]
[Black "Ashedu66"]
[Result "0-1"]
[WhiteElo "2433"]
[BlackElo "2247"]
[TimeControl "180+1"]
[EndTime "10:46:07 PST"]
[Termination "Ashedu66 won by checkmate"]

1. e4 {[%clk 0:01:40.3]} 1... e5 {[%clk 0:02:57.7]} 2. Nf3 {[%clk 0:01:38.1]}
2... Nc6 {[%clk 0:02:57.7]} 3. Bb5 {[%clk 0:01:37.7]} 3... Nge7 {[%clk
0:02:56.5]} 4. Nc3 {[%clk 0:01:36]} 4... d6 {[%clk 0:02:55.4]} 5. O-O {[%clk
0:01:32]} 5... Bd7 {[%clk 0:02:49.3]} 6. Re1 {[%clk 0:01:25.8]} 6... g6 {[%clk
0:02:49.1]} 7. d3 {[%clk 0:01:20]} 7... Bg7 {[%clk 0:02:48.3]} 8. a4 {[%clk
0:01:17.5]} 8... O-O {[%clk 0:02:47.5]} 9. h3 {[%clk 0:01:15.3]} 9... h6 {[%clk
0:02:46.2]} 10. Be3 {[%clk 0:01:13.7]} 10... Kh7 {[%clk 0:02:42.4]} 11. Qd2
{[%clk 0:01:13.8]} 11... f5 {[%clk 0:02:41]} 12. exf5 {[%clk 0:01:14.7]} 12...
Nxf5 {[%clk 0:02:39.4]} 13. Nh2 {[%clk 0:01:06.3]} 13... Ncd4 {[%clk 0:02:18.2]}
14. Bc4 {[%clk 0:01:02.3]} 14... c6 {[%clk 0:02:12.5]} 15. Ba2 {[%clk
0:01:00.6]} 15... d5 {[%clk 0:02:03.1]} 16. Ne2 {[%clk 0:00:58]} 16... Nxe3
{[%clk 0:01:41.9]} 17. fxe3 {[%clk 0:00:56.7]} 17... Nf5 {[%clk 0:01:39]} 18. e4
{[%clk 0:00:55.1]} 18... Qb6+ {[%clk 0:00:58.8]} 19. Kh1 {[%clk 0:00:53.1]}
19... Ne3 {[%clk 0:00:56.7]} 20. Nc3 {[%clk 0:00:47.2]} 20... d4 {[%clk
0:00:54.6]} 21. Nd1 {[%clk 0:00:47.1]} 21... Nxd1 {[%clk 0:00:41]} 22. Rexd1
{[%clk 0:00:48]} 22... Rf6 {[%clk 0:00:31]} 23. b4 {[%clk 0:00:46.4]} 23... Raf8
{[%clk 0:00:29.4]} 24. a5 {[%clk 0:00:45.7]} 24... Qd8 {[%clk 0:00:25.5]} 25.
Rf1 {[%clk 0:00:44.5]} 25... h5 {[%clk 0:00:20.8]} 26. Rxf6 {[%clk 0:00:41.6]}
26... Rxf6 {[%clk 0:00:18.2]} 27. Rf1 {[%clk 0:00:42]} 27... Bh6 {[%clk
0:00:17.2]} 28. Qe2 {[%clk 0:00:42]} 28... Qf8 {[%clk 0:00:16.7]} 29. Rxf6
{[%clk 0:00:41]} 29... Qxf6 {[%clk 0:00:16.9]} 30. Qf3 {[%clk 0:00:41.6]} 30...
Kg7 {[%clk 0:00:14.3]} 31. Bc4 {[%clk 0:00:38.4]} 31... a6 {[%clk 0:00:13.2]}
32. Kg1 {[%clk 0:00:36.4]} 32... Qxf3 {[%clk 0:00:12.1]} 33. Nxf3 {[%clk
0:00:35]} 33... Kf6 {[%clk 0:00:12.4]} 34. Kf2 {[%clk 0:00:35.4]} 34... Bf8
{[%clk 0:00:12.4]} 35. g3 {[%clk 0:00:30.7]} 35... Bxb4 {[%clk 0:00:11.8]} 36.
h4 {[%clk 0:00:28.4]} 36... Bxa5 {[%clk 0:00:10.9]} 37. Ng5 {[%clk 0:00:29]}
37... Bd2 {[%clk 0:00:09.3]} 38. Nf7 {[%clk 0:00:24.6]} 38... Be6 {[%clk
0:00:07.4]} 39. Bxe6 {[%clk 0:00:25.1]} 39... Kxe6 {[%clk 0:00:07.6]} 40. Nd8+
{[%clk 0:00:26]} 40... Kd6 {[%clk 0:00:06.5]} 41. Nxb7+ {[%clk 0:00:26.9]} 41...
Kc7 {[%clk 0:00:06.5]} 42. Nc5 {[%clk 0:00:26.4]} 42... a5 {[%clk 0:00:06.8]}
43. Nb3 {[%clk 0:00:26.5]} 43... Bb4 {[%clk 0:00:06.1]} 44. g4 {[%clk
0:00:24.7]} 44... a4 {[%clk 0:00:05.9]} 45. Nc1 {[%clk 0:00:24.6]} 45... Bc3
{[%clk 0:00:03.1]} 46. gxh5 {[%clk 0:00:21.8]} 46... gxh5 {[%clk 0:00:02.9]} 47.
Ke2 {[%clk 0:00:20.6]} 47... Kd6 {[%clk 0:00:03]} 48. Kd1 {[%clk 0:00:21.3]}
48... Kc5 {[%clk 0:00:02.9]} 49. Na2 {[%clk 0:00:21.2]} 49... Ba5 {[%clk
0:00:01.7]} 50. Kc1 {[%clk 0:00:21]} 50... Bd8 {[%clk 0:00:01.6]} 51. Kb2 {[%clk
0:00:21.9]} 51... Bxh4 {[%clk 0:00:01.6]} 52. Ka3 {[%clk 0:00:22.5]} 52... Be7
{[%clk 0:00:01.9]} 53. Nc1 {[%clk 0:00:20.9]} 53... h4 {[%clk 0:00:02.2]} 54.
Ne2 {[%clk 0:00:20.3]} 54... h3 {[%clk 0:00:02.5]} 55. Ng3 {[%clk 0:00:20.7]}
55... h2 {[%clk 0:00:02.8]} 56. Nh1 {[%clk 0:00:21.6]} 56... Kb5+ {[%clk
0:00:02.7]} 57. Kb2 {[%clk 0:00:18.9]} 57... Bh4 {[%clk 0:00:03.4]} 58. Kc1
{[%clk 0:00:19.2]} 58... Kb4 {[%clk 0:00:03.7]} 59. Kd1 {[%clk 0:00:20.1]} 59...
a3 {[%clk 0:00:03.9]} 60. Kd2 {[%clk 0:00:21]} 60... a2 {[%clk 0:00:03.6]} 61.
Ng3 {[%clk 0:00:20.3]} 61... a1=Q {[%clk 0:00:03.4]} 62. Ne2 {[%clk 0:00:21.2]}
62... h1=Q {[%clk 0:00:03]} 63. c3+ {[%clk 0:00:22]} 63... dxc3+ {[%clk
0:00:02.5]} 64. Nxc3 {[%clk 0:00:22.9]} 64... Qxc3+ {[%clk 0:00:02.6]} 65. Ke3
{[%clk 0:00:23.8]} 65... Qhe1+ {[%clk 0:00:02.5]} 66. Kf3 {[%clk 0:00:23.8]}
66... Qxd3+ {[%clk 0:00:02.9]} 67. Kg4 {[%clk 0:00:24.7]} 67... Qexe4+ {[%clk
0:00:03.1]} 68. Kh5 {[%clk 0:00:24.7]} 68... Qdf3+ {[%clk 0:00:03.3]} 69. Kh6
{[%clk 0:00:24.1]} 69... Qf6+ {[%clk 0:00:03.5]} 70. Kh5 {[%clk 0:00:23.4]}
70... Qef5# {[%clk 0:00:03.8]} 0-1